fUST/lending_fUST_20240125
["ID","MTS","AMOUNT","RATE_DAILY","PERIOD"]
[312708788,1706176240230,-153.0,0.00030578,2]
[312708789,1706176240239,-153.0,0.00030578,2]
[312708790,1706176240248,-153.0,0.00030578,2]
[312708791,1706176240257,-153.0,0.00030578,2]
[312708792,1706176240266,-153.0,0.00030578,2]
[312708793,1706176240275,-153.0,0.00030578,2]
[312708794,1706176240284,-231.52226558,0.00031,4]
[312708795,1706176240293,-156.03464292,0.00031197,4]
[312708796,1706176240302,-214.17153359,0.00031197,4]
[312708797,1706176240311,-158.32153403,0.00031197,4]
[312708798,1706176240321,-179.44389491,0.00031197,2]
[312708799,1706176240330,-285.29749616,0.00031197,4]
[312708800,1706176240339,-1993.49479484,0.00031198,4]
[312708801,1706176240349,-300.0,0.00031199,4]
[312708802,1706176240358,-257.11934775,0.00031199,4]
[312708803,1706176240367,-2801.88705417,0.00031199,4]
[312708804,1706176240376,-834.30991439,0.00031199,4]
[312708805,1706176240386,-687.23319626,0.00031199,4]
[312708806,1706176240395,-1027.07329031,0.00031199,2]
[312708807,1706176240409,-183.00882655,0.00031199,2]
[312708808,1706176240420,-537.99347412,0.00031199,4]
[312708809,1706176240429,-4290.77402713,0.00031199,4]
[312708810,1706176240438,-463.84968646,0.00031199,4]
[312708811,1706176240447,-2454.66425031,0.00031199,2]
[312708812,1706176240457,-375.96014132,0.00031199,4]
[312708813,1706176240466,-236.61667227,0.00031199,7]
[312708814,1706176240476,-643.15606122,0.00031199,4]
[312708815,1706176240485,-238.72843329,0.00031199,4]
[312708816,1706176240495,-154.92169905,0.00031199,4]
[312708817,1706176240505,-11542.57423452,0.00031271,3]
[312708818,1706176240514,-155.8657362,0.000313,2]
[312708819,1706176240523,-3320.42794316,0.00031308,2]
[312708820,1706176240532,-50000.0,0.00031308,3]
[312708822,1706176240542,-50000.0,0.00031308,3]
[312708824,1706176240551,-93493.09959612,0.00031308,3]
[312708826,1706176240560,-19249.99999999,0.00031308,3]
[312708828,1706176240569,-342.89784498,0.0003133,4]
[312708830,1706176240578,-370.30388146,0.00031331,6]
[312708834,1706176240587,-5367.71197397,0.00031347,2]
[312708838,1706176240596,-280.0,0.00031406,15]
[312708840,1706176240606,-1274.93866513,0.00032458,2]
[312708843,1706176240615,-1837.69539028,0.00032895,4]
[312708845,1706176240624,-1441.27235649,0.00032996,4]
[312708846,1706176240633,-784.96493466,0.00032996,4]
[312708848,1706176240643,-1250.51906474,0.00032996,4]
[312708849,1706176240652,-266.14343871,0.00032996,4]
[312708850,1706176240661,-631.01829921,0.00033238,2]
[312708851,1706176240670,-373.0,0.00034547,15]
[312708852,1706176240680,-154.84515485,0.00036,4]
[312708853,1706176240689,-1297.29433275,0.00037144,4]
[312708854,1706176240698,-1751.98385727,0.0003715,5]
[312708856,1706176240708,-150.0,0.00039835,2]
[312708858,1706176240717,-177.26272346,0.00039933,9]
[312708860,1706176240726,-159.67503241,0.00040293,15]
[312708861,1706176240736,-569.17334607,0.00040293,15]
[312708863,1706176240745,-500.0,0.00040293,15]
[312708864,1706176240754,-227.0821289,0.00040293,15]
[312708865,1706176240763,-166.85042456,0.00040293,15]
[312708866,1706176240774,-5000.0,0.00040294,7]
[312708868,1706176240783,-5000.0,0.00040294,7]
[312708869,1706176240792,-50000.0,0.00040294,7]
[312708870,1706176240801,-16627.3457383,0.00040294,7]
[312708878,1706176241599,-4291.1465399,0.00040294,7]
[312708880,1706176241611,-11342.02793267,0.00040294,7]
[312708881,1706176241661,-549.66500002,0.00040294,7]
[312708918,1706176243543,-3308.77554005,0.00030577,4]
[312708919,1706176243555,-4530.72634075,0.00030577,4]
[312709034,1706176246742,-153.0,0.00030478,2]
[312709036,1706176246751,-2023.99999998,0.00030577,4]
[312709039,1706176246763,-83.82412318,0.00030577,4]
[312709041,1706176246773,-5267.62407958,0.00030577,4]
[312709042,1706176246782,-324.72667467,0.00030577,2]
[312709043,1706176246792,-174.0566494,0.00030577,4]
[312709044,1706176246801,-270.25663376,0.00040293,4]
[312709046,1706176246811,-1197.78753763,0.00040293,4]
[312709048,1706176246820,-4596.18187206,0.00040293,4]
[312709050,1706176246830,-10883.68424941,0.00040294,7]
[312709053,1706176269371,-500.0,0.0002854,2]
[312709054,1706176269398,-500.0,0.0002854,2]
[312709055,1706176269427,-500.0,0.0002854,2]
[312709056,1706176269455,-300.0,0.0002854,2]
[312709057,1706176269489,-218.21612928,0.00030476,4]
[312709058,1706176269531,-998.22354143,0.00030476,4]
[312709059,1706176269555,-434.38948204,0.00030477,4]
[312709060,1706176269579,-396.37619263,0.00030477,4]
[312709061,1706176269605,-154.84515485,0.00030477,5]
[312709062,1706176269630,-271.13933697,0.00030477,4]
[312709063,1706176269657,-2553.34863428,0.00030576,4]
[312709064,1706176276315,-11616.75543877,0.00030576,4]
[312709065,1706176281772,-687.23319626,0.00031199,4]
[312709066,1706176281796,-882.75397074,0.00031199,4]
[312709067,1706176281819,-2801.88705417,0.00031199,4]
[312709068,1706176281841,-345.07315204,0.00031199,4]
[312709069,1706176281865,-375.96014132,0.00031199,4]
[312709070,1706176283732,2454.66425031,0.00031199,4]
[312709071,1706176288515,-2454.66425031,0.00031199,2]
[312709072,1706176297763,-1836.10977682,0.00031199,4]
[312709073,1706176305029,-257.5147014,0.00030576,4]
[312709074,1706176305057,-303.48339143,0.00030576,4]
[312709075,1706176305082,-126.23510343,0.00031199,4]
[312709076,1706176313481,-560.99809283,0.00031199,4]
[312709077,1706176313504,-2801.88705417,0.00031199,4]
[312709078,1706176317724,537.114853,0.00030576,4]
[312709079,1706176327335,-355.50412261,0.00030576,2]
[312709080,1706176327358,-182.10743815,0.00030576,2]
[312709081,1706176327381,-3753.65917413,0.00030576,4]
[312709082,1706176341223,-2064.87283621,0.00030576,4]
[312709085,1706176433592,3566.6415318,0.0001631,2]
[312709087,1706176448262,7430.9364786,0.0001789,2]
[312709099,1706176533215,238.72843329,0.0001789,2]
[312709103,1706176537544,620.96495057,0.0001789,2]
[312709104,1706176537956,154.92169905,0.0001789,2]
[312709106,1706176539736,463.84968646,0.0001789,2]
[312709107,1706176540518,537.99347412,0.0001789,2]
[312709108,1706176540644,643.15606122,0.0001789,2]
[312709115,1706176559535,213.34496382,0.0001789,2]
[312709118,1706176570997,155.14778992,0.0001789,2]
[312709126,1706176679200,200.0,0.00021999,7]
[312709172,1706177278950,200.0,0.0002196,7]
[312709269,1706177438659,-154.84515485,0.00019949,2]
[312709271,1706177438669,-3920.61735066,0.00019949,2]
[312709273,1706177438678,-154.84515485,0.00019949,2]
[312709275,1706177438687,-154.84515485,0.0001995,2]
[312709276,1706177438696,-500.0,0.0001995,2]
[312709277,1706177438705,-616.99357783,0.00019951,2]
[312709278,1706177438714,-154.84515485,0.00019951,3]
[312709280,1706177438723,-154.84515485,0.00019952,2]
[312709282,1706177438732,-300.0,0.0002,2]
[312709284,1706177438742,-154.84515485,0.0002,2]
[312709288,1706177438838,-10834.7074662,0.0002075,2]
[312709289,1706177438848,-243.4528969,0.00020765,2]
[312709290,1706177438857,-167.216334,0.00021742,2]
[312709291,1706177438869,-1826.97153487,0.0002196,2]
[312709292,1706177438879,-2085.40450746,0.0002196,2]
[312709293,1706177438890,-280.0,0.00024156,7]
[312709294,1706177438902,-257.11934775,0.000249,2]
[312709295,1706177438911,-1500.90139842,0.00025,2]
[312709296,1706177438921,-25347.50051164,0.00025,2]
[312709297,1706177438930,-1002.8647388,0.00025,2]
[312709298,1706177438939,-764.4359775,0.00025,2]
[312709299,1706177438948,-391.0,0.00026572,15]
[312709300,1706177438957,-236.61667227,0.00028,7]
[312709301,1706177438966,-375.96014132,0.00028,2]
[312709302,1706177438975,-248.23684416,0.00028712,2]
[312709303,1706177438986,-286.91674003,0.00029848,2]
[312709304,1706177438995,-7594.84,0.0002999,3]
[312709305,1706177439004,-271.63188504,0.00029998,2]
[312709306,1706177439013,-212.02726052,0.00029998,2]
[312709307,1706177439022,-290.18991434,0.00029998,2]
[312709308,1706177439031,-155.43712027,0.00029998,2]
[312709309,1706177439040,-2783.39018401,0.00029998,5]
[312709310,1706177439050,-229.82325492,0.00029998,2]
[312709311,1706177439059,-327.38963306,0.00029998,2]
[312709312,1706177439068,-2535.74256144,0.00029998,2]
[312709313,1706177439077,-1484.61502997,0.00029998,2]
[312709314,1706177439086,-155.17005011,0.00029999,2]
[312709315,1706177439095,-645.92095854,0.00029999,2]
[312709316,1706177439104,-183.00882655,0.0003,2]
[312709317,1706177439113,-688.78830185,0.0003,4]
[312709318,1706177439122,-154.84515485,0.0003,4]
[312709319,1706177439132,-139264.62830083,0.0003,4]
[312709320,1706177439142,-244.31917233,0.0003,4]
[312709321,1706177439152,-195.4790082,0.0003,2]
[312709322,1706177439161,-153.0,0.00030137,2]
[312709323,1706177439171,-153.0,0.00030137,2]
[312709324,1706177439179,-153.0,0.00030137,2]
[312709325,1706177439189,-154.6334572,0.00030137,2]
[312709326,1706177439198,-153.0,0.00030137,2]
[312709327,1706177439207,-153.0,0.00030137,2]
[312709328,1706177439217,-153.0,0.00030137,2]
[312709329,1706177439226,-153.0,0.00030137,2]
[312709330,1706177439235,-153.0,0.00030137,2]
[312709331,1706177439244,-153.0,0.00030137,2]
[312709332,1706177439254,-153.0,0.00030137,2]
[312709333,1706177439263,-155.8657362,0.00030178,2]
[312709334,1706177439272,-589.44307605,0.00030576,4]
[312709335,1706177439281,-4290.77402713,0.00030576,4]
[312709336,1706177439290,-153.0,0.000306,2]
[312709337,1706177439299,-199.3339408,0.000306,2]
[312709338,1706177439308,-153.0,0.000306,2]
[312709339,1706177439318,-153.0,0.000306,2]
[312709340,1706177439327,-153.0,0.000306,2]
[312709341,1706177439337,-153.0,0.000306,2]
[312709342,1706177439347,-153.0,0.000306,2]
[312709343,1706177439356,-199.3339408,0.000306,2]
[312709344,1706177439366,-153.0,0.000306,2]
[312709345,1706177439375,-153.0,0.000306,2]
[312709346,1706177439384,-153.0,0.000306,2]
[312709347,1706177439394,-153.0,0.000306,2]
[312709348,1706177439405,-153.0,0.000306,2]
[312709349,1706177439414,-153.0,0.000306,2]
[312709350,1706177439424,-153.0,0.000306,2]
[312709351,1706177439434,-153.0,0.000306,2]
[312709352,1706177439443,-199.3339408,0.000306,2]
[312709353,1706177439453,-153.0,0.000306,2]
[312709354,1706177439462,-153.0,0.000306,2]
[312709355,1706177439472,-312.9744068,0.000306,2]
[312709356,1706177439481,-199.3339408,0.000306,2]
[312709357,1706177439490,-153.0,0.000306,2]
[312709358,1706177439499,-155.863998,0.000306,2]
[312709359,1706177439507,-153.0,0.000306,2]
[312709360,1706177439516,-199.3339408,0.000306,2]
[312709361,1706177439526,-153.0,0.000306,2]
[312709362,1706177439535,-204.7218203,0.000306,2]
[312709363,1706177439545,-1837.69539028,0.00030998,4]
[312709364,1706177439554,-1441.27235649,0.00030998,4]
[312709365,1706177439563,-342.89784498,0.00030998,4]
[312709366,1706177439573,-1993.49479484,0.00030998,4]
[312709367,1706177439582,-214.17153359,0.00030998,4]
[312709368,1706177439591,-179.44389491,0.00030998,2]
[312709369,1706177439600,-156.03464292,0.00030998,4]
[312709370,1706177439610,-266.14343871,0.00030999,4]
[312709371,1706177439619,-1250.51906474,0.00030999,4]
[312709372,1706177439629,-784.96493466,0.00030999,4]
[312709373,1706177439638,-370.30388146,0.00031,6]
[312709374,1706177439649,-231.52226558,0.00031,4]
[312709375,1706177439658,-500.0,0.00031595,7]
[312709376,1706177439667,-206.64149497,0.00031595,7]
[312709377,1706177439677,-637.7833987,0.00031595,7]
[312709378,1706177439687,-500.0,0.00031595,7]
[312709379,1706177439696,-500.0,0.00031595,7]
[312709380,1706177439705,-500.0,0.00031595,7]
[312709381,1706177439714,-500.0,0.00031595,7]
[312709382,1706177439723,-68156.19585676,0.00031596,3]
[312709383,1706177439733,-50000.0,0.00031596,3]
[312709384,1706177439744,-81469.13916095,0.00031596,3]
[312709385,1706177439753,-12310.61193786,0.00031673,3]
[312709386,1706177439762,-631.01829921,0.00031961,2]
[312709387,1706177439771,-582.62840377,0.00032,3]
[312709388,1706177439781,-48917.27561764,0.00032,15]
[312709389,1706177439795,-8958.06521724,0.00032,15]
[312709390,1706177439807,-1192.99083554,0.00032,15]
[312709467,1706177443882,-154.84515485,0.00019948,2]
[312709469,1706177443892,-323.30988592,0.0002,2]
[312709471,1706177443902,-243.65395261,0.00032,15]
[312709547,1706178631791,-154.86062544,0.00021933,4]
[312709548,1706178631802,-500.0,0.00021934,2]
[312709550,1706178631811,-70.82678903,0.00021959,2]
[312709556,1706178631851,-1962.66324215,0.00021959,2]
[312709559,1706178631863,-1887.12731948,0.00021959,2]
[312709561,1706178631872,-627.69271544,0.0002196,2]
[312709564,1706178631881,-716.48254671,0.0002196,2]
[312709567,1706178631891,-262.63731281,0.00025,2]
[312709569,1706178631900,-4202.4684787,0.00028271,2]
[312709571,1706178631909,-167.592427,0.00028587,2]
[312709573,1706178631918,-687.23319626,0.0003,4]
[312709575,1706178631928,-244.31917233,0.0003,4]
[312709578,1706178631937,-3286.52869079,0.00031038,10]
[312709581,1706178631946,-170.00063216,0.00031649,5]
[312709584,1706178631955,-6329.03,0.00031716,3]
[312709587,1706178631964,-35376.13464443,0.00031726,4]
[312709724,1706179433642,2039.90219029,0.00029,30]
[312709797,1706179832069,-327.05548878,0.0002384,2]
[312709799,1706179832088,-1253.9943907,0.00027205,2]
[312709801,1706179832102,-368.45416381,0.00027206,2]
[312709876,1706179838157,-500.0,0.00027205,2]
[312709877,1706179838166,-311.91244819,0.00027206,2]
[312709878,1706179838176,-850.73963902,0.00027206,2]
[312709880,1706179838184,-154.86062544,0.00027207,4]
[312709882,1706179838193,-323.30988592,0.00027208,2]
[312709883,1706179838202,-10546.60603151,0.00027208,2]
[312709885,1706179838212,-164.59714006,0.00027217,2]
[312709887,1706179838221,-166.468529,0.00027574,2]
[312709889,1706179838230,-170.6217642,0.00027608,2]
[312709890,1706179838240,-274.40727251,0.00028571,2]
[312709891,1706179838249,-3996.00567181,0.00028603,2]
[312709892,1706179838258,-154.86062544,0.00028606,2]
[312709893,1706179838267,-168.99206228,0.00028755,4]
[312709894,1706179838276,-1660.61830463,0.00028773,2]
[312709912,1706179841041,-2008.67682322,0.00028773,2]
[312709913,1706179841053,-2403.12042989,0.00028773,2]
[312709914,1706179841064,-714.29822966,0.00028773,2]
[312710017,1706179843237,-1266.2078341,0.00028773,2]
[312710145,1706179846454,-16847.0783785,0.00028773,2]
[312710147,1706179846463,-1085.23566611,0.00028855,2]
[312710149,1706179846472,-3193.56181162,0.00029,2]
[312710151,1706179846480,-6295.28277272,0.000299,2]
[312710153,1706179846489,-5547.75,0.0002999,3]
[312710154,1706179846498,-113626.29973579,0.0003,4]
[312710157,1706179846509,-1804.77889988,0.0003,4]
[312710159,1706179846520,-2220.3689115,0.0003,4]
[312710733,1706181039409,-644.67775668,0.00027501,2]
[312710735,1706181039418,-295.01713766,0.00027502,2]
[312710737,1706181039427,-154.86062544,0.00027503,2]
[312710739,1706181039436,-323.30988592,0.00027504,2]
[312710741,1706181039446,-500.0,0.00027505,2]
[312710743,1706181039454,-154.86062544,0.00027505,4]
[312710745,1706181039464,-2107.52773292,0.00027516,2]
[312710747,1706181039475,-997.21183999,0.00027516,2]
[312710937,1706181041367,-948.40843437,0.00027516,2]
[312710939,1706181041378,-4887.01391904,0.00027516,2]
[312710998,1706181043255,-907.62073107,0.00027516,2]
[312711021,1706181046398,-1036.40895184,0.00027516,2]
[312711022,1706181046411,-4342.16821908,0.00027516,2]
[312711023,1706181046420,-6245.6412171,0.00027517,2]
[312711024,1706181046430,-168.99206226,0.00027761,3]
[312711025,1706181046439,-166.468529,0.00027861,2]
[312711026,1706181046448,-653.72916756,0.00028782,2]
[312711027,1706181046458,-4047.13558431,0.00029,2]
[312711052,1706182234617,-265.58036127,0.00023721,2]
[312711054,1706182234627,-850.73963902,0.00023721,2]
[312711056,1706182234636,-5444.63526718,0.00023721,2]
[312711271,1706182238493,-5101.97076433,0.00023721,2]
[312711272,1706182238503,-500.0,0.00023721,2]
[312711274,1706182238512,-3038.83727611,0.00023722,2]
[312711276,1706182238521,-154.8915759,0.00023722,2]
[312711278,1706182238530,-522.3174167,0.00023723,2]
[312711280,1706182238540,-154.8915759,0.00023723,2]
[312711282,1706182238549,-1294.21834109,0.00023724,2]
[312711283,1706182238558,-154.8915759,0.00023724,2]
[312711285,1706182238568,-1242.95347942,0.00023724,2]
[312711287,1706182238577,-1198.61763963,0.00023725,2]
[312711289,1706182238586,-154.8915759,0.00023725,4]
[312711290,1706182238595,-3920.61735066,0.00023726,2]
[312711292,1706182238604,-24900.0,0.00023728,2]
[312711293,1706182238614,-170.17695293,0.0002454,2]
[312711294,1706182238623,-250.0,0.00024649,2]
[312711296,1706182238631,-1040.8718319,0.0002577,2]
[312711298,1706182238640,-154.92253873,0.000261,2]
[312711299,1706182238650,-200.0,0.000271,15]
[312711301,1706182238660,-5660.40261708,0.00028584,2]
[312711304,1706182238669,-2486.01167359,0.00028585,2]
[312711306,1706182238678,-151.63703844,0.00028942,2]
[312711308,1706182238688,-3256.46441569,0.00029,2]
[312711309,1706182238697,-303.61999861,0.00029,2]
[312711312,1706182238706,-3193.56181162,0.00029,2]
[312711313,1706182238715,-685.787368,0.00029,2]
[312711315,1706182238724,-165.720725,0.00029031,2]
[312711318,1706182238734,-1549.68,0.00029284,3]
[312711319,1706182238743,-2677.85,0.00029294,3]
[312711320,1706182238752,-2231.55,0.00029294,3]
[312711322,1706182238762,-1859.62,0.00029294,3]
[312711323,1706182238770,-3213.42,0.00029304,3]
[312711325,1706182238780,-3856.11,0.00029314,3]
[312711326,1706182238790,-4627.33,0.00029324,3]
[312711327,1706182238799,-153.0,0.00029334,2]
[312711328,1706182238807,-153.0,0.00029334,2]
[312711329,1706182238816,-198.9568088,0.00029334,2]
[312711330,1706182238825,-153.0,0.00029334,2]
[312711331,1706182238834,-204.2953583,0.00029378,2]
[312711332,1706182238844,-199.3339408,0.00029434,2]
[312711333,1706182238853,-155.8657362,0.00029434,2]
[312711334,1706182238862,-153.0,0.00029434,2]
[312711335,1706182238871,-199.3339408,0.00029434,2]
[312711336,1706182238880,-153.0,0.00029434,2]
[312711337,1706182238889,-153.0,0.00029652,2]
[312711338,1706182238898,-153.0,0.00029652,2]
[312711339,1706182238907,-153.0,0.00029652,2]
[312711340,1706182238916,-153.0,0.00029652,2]
[312711341,1706182238926,-153.0,0.00029652,2]
[312711342,1706182238934,-153.0,0.00029652,2]
[312711343,1706182238943,-153.0,0.00029652,2]
[312711344,1706182238952,-153.0,0.00029652,2]
[312711345,1706182238961,-153.0,0.00029652,2]
[312711346,1706182238970,-280.0,0.0002981,15]
[312711347,1706182238979,-153.0,0.00029856,2]
[312711348,1706182238988,-161.1858013,0.00029856,2]
[312711349,1706182238997,-645.93662687,0.00029998,2]
[312711350,1706182239006,-437.24053789,0.00029999,2]
[312711351,1706182239016,-150.35,0.0003,2]
[312711352,1706182239025,-153.0,0.0003,2]
[312711353,1706182239034,-153.0,0.0003,2]
[312711354,1706182239046,-199.3339408,0.0003,2]
[312711355,1706182239055,-183.00882655,0.0003,2]
[312711356,1706182239064,-589.44307605,0.0003,4]
[312711357,1706182239073,-244.31917233,0.0003,4]
[312711358,1706182239082,-2482.75,0.00030087,3]
[312711359,1706182239090,-153.0,0.00030137,2]
[312711360,1706182239099,-153.0,0.00030137,2]
[312711361,1706182239108,-154.6334572,0.00030137,2]
[312711362,1706182239118,-153.0,0.00030137,2]
[312711363,1706182239127,-153.0,0.00030137,2]
[312711364,1706182239136,-153.0,0.00030137,2]
[312711365,1706182239145,-153.0,0.00030137,2]
[312711366,1706182239154,-153.0,0.00030137,2]
[312711367,1706182239164,-153.0,0.00030137,2]
[312711368,1706182239174,-153.0,0.00030137,2]
[312711369,1706182239183,-153.0,0.00030137,2]
[312711370,1706182239193,-153.0,0.00030137,2]
[312711371,1706182239202,-153.0,0.00030137,2]
[312711372,1706182239211,-153.0,0.00030137,2]
[312711373,1706182239221,-153.0,0.00030137,2]
[312711374,1706182239230,-153.0,0.00030137,2]
[312711375,1706182239239,-155.863998,0.00030137,2]
[312711376,1706182239249,-312.9744068,0.00030137,2]
[312711377,1706182239259,-153.0,0.00030137,2]
[312711378,1706182239268,-153.0,0.00030137,2]
[312711379,1706182239277,-153.0,0.00030137,2]
[312711380,1706182239286,-153.0,0.00030137,2]
[312711381,1706182239298,-199.3339408,0.00030137,2]
[312711382,1706182239307,-153.0,0.00030137,2]
[312711383,1706182239317,-153.0,0.00030137,2]
[312711384,1706182239326,-153.0,0.00030137,2]
[312711385,1706182239336,-153.0,0.00030137,2]
[312711386,1706182239345,-153.0,0.00030137,2]
[312711387,1706182239356,-199.3339408,0.00030137,2]
[312711388,1706182239366,-153.0,0.00030137,2]
[312711389,1706182239376,-153.0,0.00030137,2]
[312711390,1706182239385,-199.3339408,0.00030137,2]
[312711391,1706182239394,-153.0,0.00030137,2]
[312711392,1706182239405,-199.3339408,0.00030137,2]
[312711393,1706182239414,-153.0,0.00030137,2]
[312711394,1706182239423,-153.0,0.00030137,2]
[312711395,1706182239433,-199.3339408,0.00030137,2]
[312711396,1706182239443,-153.0,0.00030137,2]
[312711397,1706182239452,-204.7218203,0.00030137,2]
[312711398,1706182239461,-158.7161364,0.000302,2]
[312711399,1706182239470,-621.68645838,0.00030221,2]
[312711400,1706182239479,-315.27748828,0.00031444,4]
[312711401,1706182239489,-500.0,0.00031444,2]
[312711402,1706182239499,-335.28077481,0.00031444,2]
[312711403,1706182239508,-206.64149497,0.00031444,2]
[312711404,1706182239518,-500.0,0.00031444,2]
[312711405,1706182239527,-637.7833987,0.00031444,2]
[312711406,1706182239536,-500.0,0.00031444,2]
[312711407,1706182239547,-500.0,0.00031444,2]
[312711408,1706182239557,-500.0,0.00031444,2]
[312711409,1706182239566,-151.0,0.00031445,2]
[312711410,1706182239575,-1002.359884,0.00031445,2]
[312711411,1706182239584,-1002.359884,0.00031445,2]
[312711412,1706182239593,-1002.359884,0.00031445,2]
[312711413,1706182239603,-1002.359884,0.00031445,2]
[312711414,1706182239612,-151.0,0.00031445,2]
[312711415,1706182239621,-151.0,0.00031445,2]
[312711416,1706182239631,-151.0,0.00031445,2]
[312711417,1706182239640,-151.0,0.00031445,2]
[312711418,1706182239649,-151.555783,0.00031445,2]
[312711419,1706182239658,-180.120135,0.00031445,2]
[312711420,1706182239667,-180.120135,0.00031445,2]
[312711421,1706182239676,-180.120135,0.00031445,2]
[312711422,1706182239686,-180.120135,0.00031445,2]
[312711423,1706182239699,-180.120135,0.00031445,2]
[312711424,1706182239708,-180.120135,0.00031445,2]
[312711425,1706182239718,-180.120135,0.00031445,2]
[312711426,1706182239727,-180.120135,0.00031445,2]
[312711427,1706182239736,-180.120135,0.00031445,2]
[312711428,1706182239746,-180.120135,0.00031445,2]
[312711429,1706182239755,-180.120135,0.00031445,2]
[312711430,1706182239764,-180.120135,0.00031445,2]
[312711431,1706182239774,-180.120135,0.00031445,2]
[312711432,1706182239783,-180.120135,0.00031445,2]
[312711433,1706182239793,-151.0,0.00031445,2]
[312711434,1706182239804,-151.661833,0.00031445,2]
[312711435,1706182239813,-286.496389,0.00031445,2]
[312711436,1706182239822,-286.496389,0.00031445,2]
[312711437,1706182239831,-286.496389,0.00031445,2]
[312711438,1706182239841,-286.496389,0.00031445,2]
[312711439,1706182239850,-286.496389,0.00031445,2]
[312711440,1706182239860,-286.496389,0.00031445,2]
[312711441,1706182239869,-286.496389,0.00031445,2]
[312711442,1706182239879,-286.496389,0.00031445,2]
[312711443,1706182239888,-286.496389,0.00031445,2]
[312711444,1706182239897,-286.496389,0.00031445,2]
[312711445,1706182239907,-286.496389,0.00031445,2]
[312711447,1706182239916,-286.496389,0.00031445,2]
[312711448,1706182239925,-286.496389,0.00031445,2]
[312711450,1706182239935,-286.496389,0.00031445,2]
[312711452,1706182239944,-2874.052577,0.00031445,2]
[312711454,1706182239953,-2874.052577,0.00031445,2]
[312711456,1706182239963,-2874.052577,0.00031445,2]
[312711458,1706182239972,-2874.052577,0.00031445,2]
[312711460,1706182239981,-2874.052577,0.00031445,2]
[312711461,1706182239990,-2874.052577,0.00031445,2]
[312711463,1706182240000,-2874.052577,0.00031445,2]
[312711465,1706182240010,-2874.052577,0.00031445,2]
[312711467,1706182240020,-2874.052577,0.00031445,2]
[312711468,1706182240032,-2874.052577,0.00031445,2]
[312711469,1706182240042,-2874.052577,0.00031445,2]
[312711473,1706182240123,-2874.052577,0.00031445,2]
[312711475,1706182240133,-2874.052577,0.00031445,2]
[312711477,1706182240142,-2874.052577,0.00031445,2]
[312711479,1706182240151,-10000.0,0.00031445,2]
[312711481,1706182240161,-8866.11033832,0.00031445,2]
[312711483,1706182240174,-1133.88966168,0.00031445,2]
[312711484,1706182240183,-4299.25097742,0.00031445,2]
[312711485,1706182240198,-253.03416128,0.00031445,2]
[312711562,1706182244126,-1291.4,0.00031435,3]
[312711564,1706182244135,-5447.7148613,0.00031445,2]
[312711566,1706182244144,-7511.39864525,0.00031445,2]
[312711576,1706182244308,-1646.2653325,0.00031445,2]
[312711577,1706182244322,-842.33602225,0.00031445,2]
[312711578,1706182244331,-732.07470749,0.00031445,2]
[312711579,1706182244347,-9267.92529251,0.00031445,2]
[312711580,1706182244359,-267.3070913,0.00031445,2]
[312711581,1706182244378,-9732.6929087,0.00031445,2]
[312711582,1706182244387,-5952.13560231,0.00031445,2]
[312711638,1706183433953,-1583.23422085,0.00024445,2]
[312711639,1706183433963,-211.61433974,0.00024446,2]
[312711640,1706183433972,-154.90705577,0.00024446,4]
[312711641,1706183433982,-500.0,0.00024446,2]
[312711643,1706183433991,-3920.61735066,0.00024447,2]
[312711645,1706183434000,-154.90705577,0.00024448,2]
[312711646,1706183434008,-850.73963902,0.00024448,2]
[312711648,1706183434017,-154.90705577,0.00024449,2]
[312711649,1706183434027,-154.90705577,0.0002445,2]
[312711651,1706183434036,-181.496775,0.00024465,2]
[312711652,1706183434044,-158.110861,0.00025297,2]
[312711653,1706183434054,-759.47859065,0.00025472,2]
[312711654,1706183434065,-9761.63198878,0.00025472,2]
[312711655,1706183434076,-1148.30317141,0.00025472,2]